fUSD/lending_fUSD_20240428
["ID","MTS","AMOUNT","RATE_DAILY","PERIOD"]
[324812974,1714341048983,-500.0,0.00011506,2]
[324812975,1714341048993,-500.0,0.00011506,2]
[324812976,1714341049001,-500.0,0.00011506,2]
[324812977,1714341049010,-500.0,0.00011506,2]
[324812978,1714341049019,-765.24,0.00011506,2]
[324812979,1714341049028,-500.0,0.00011506,2]
[324812980,1714341049037,-500.0,0.00011506,2]
[324812981,1714341049047,-500.0,0.00011506,2]
[324812982,1714341049056,-904.55,0.00011506,2]
[324812983,1714341049065,-500.0,0.00011506,2]
[324812984,1714341049074,-500.0,0.00011506,2]
[324812985,1714341049084,-596.75,0.00011506,2]
[324812986,1714341049096,-1292.15,0.00011506,2]
[324812987,1714341049106,-500.0,0.00011506,2]
[324812988,1714341049114,-500.0,0.00011506,2]
[324812989,1714341049123,-500.0,0.00011506,2]
[324812990,1714341049132,-294.71,0.00011506,2]
[324812991,1714341049141,-500.0,0.00011506,2]
[324812992,1714341049150,-500.0,0.00011506,2]
[324812993,1714341049159,-17248.02,0.00011506,2]
[324812994,1714341049169,-500.0,0.00011506,2]
[324812995,1714341049178,-500.0,0.00011506,2]
[324812996,1714341049188,-490.93,0.00011506,2]
[324812997,1714341049196,-500.0,0.00011506,2]
[324812998,1714341049207,-1054.15,0.00011506,2]
[324812999,1714341049216,-500.0,0.00011506,2]
[324813000,1714341049225,-500.0,0.00011506,2]
[324813001,1714341049233,-500.0,0.00011506,2]
[324813002,1714341049242,-500.0,0.00011506,2]
[324813003,1714341049251,-500.0,0.00011506,2]
[324813004,1714341049261,-394.6,0.00011506,2]
[324813005,1714341049269,-500.0,0.00011506,2]
[324813006,1714341049278,-500.0,0.00011506,2]
[324813007,1714341049287,-500.0,0.00011506,2]
[324813008,1714341049297,-500.0,0.00011506,2]
[324813009,1714341049305,-166.99,0.00011506,2]
[324813010,1714341049314,-500.0,0.00011506,2]
[324813011,1714341049323,-500.0,0.00011778,2]
[324813012,1714341049332,-225.33,0.00011778,2]
[324813013,1714341049341,-500.0,0.00011778,2]
[324813014,1714341049350,-500.0,0.00011778,2]
[324813015,1714341049359,-500.0,0.00011778,2]
[324813016,1714341049368,-500.0,0.00011778,2]
[324813017,1714341049377,-500.0,0.00011778,2]
[324813018,1714341049385,-500.0,0.00011778,2]
[324813019,1714341049395,-500.0,0.00011778,2]
[324813020,1714341049404,-500.0,0.00011778,2]
[324813021,1714341049413,-500.0,0.00011778,2]
[324813022,1714341049422,-500.0,0.00011778,2]
[324813023,1714341049430,-500.0,0.00011778,2]
[324813024,1714341049439,-261.81,0.00011778,2]
[324813025,1714341049448,-500.0,0.00011778,2]
[324813026,1714341049457,-204.37,0.00011778,2]
[324813027,1714341049465,-229.87,0.00011778,2]
[324813028,1714341049474,-500.0,0.00011778,2]
[324813029,1714341049483,-500.0,0.00011778,2]
[324813030,1714341049492,-500.0,0.00011778,2]
[324813031,1714341049501,-500.0,0.00011778,2]
[324813032,1714341049509,-500.0,0.00011778,2]
[324813033,1714341049519,-500.0,0.00011778,2]
[324813034,1714341049527,-351.11,0.00011778,2]
[324813035,1714341049536,-500.0,0.00011778,2]
[324813036,1714341049544,-500.0,0.00011778,2]
[324813037,1714341049553,-500.0,0.00011778,2]
[324813038,1714341049569,-500.0,0.00011778,2]
[324813039,1714341049582,-2064.16,0.00011779,2]
[324813040,1714341049590,-621.45,0.00011779,2]
[324813041,1714341049599,-843.47,0.00011779,2]
[324813042,1714341049609,-500.0,0.00011779,2]
[324813043,1714341049618,-1166.48,0.00011779,2]
[324813044,1714341049627,-500.0,0.00011779,2]
[324813045,1714341049636,-592.13,0.00011779,2]
[324813046,1714341049645,-2311.26,0.00011779,2]
[324813047,1714341049654,-500.0,0.00011779,2]
[324813048,1714341049664,-2248.85,0.00011779,2]
[324813049,1714341049674,-500.0,0.0001178,2]
[324813050,1714341049685,-339.11841441,0.0001178,2]
[324813051,1714341049695,-500.0,0.0001178,2]
[324813052,1714341049703,-500.0,0.0001178,2]
[324813053,1714341049714,-500.0,0.0001178,2]
[324813054,1714341049723,-500.0,0.0001178,2]
[324813055,1714341049732,-500.0,0.0001178,2]
[324813056,1714341049741,-500.0,0.0001178,2]
[324813057,1714341049750,-500.0,0.0001178,2]
[324813058,1714341049759,-500.0,0.0001178,2]
[324813059,1714341049768,-743.26,0.0001178,2]
[324813060,1714341049777,-1035.98,0.0001178,2]
[324813061,1714341049786,-583.16,0.0001178,2]
[324813062,1714341049796,-500.0,0.0001178,2]
[324813063,1714341049805,-500.0,0.0001178,2]
[324813064,1714341049815,-658.41,0.0001178,2]
[324813065,1714341049825,-500.0,0.0001178,2]
[324813066,1714341049835,-1038.44,0.0001178,2]
[324813067,1714341049845,-751.72,0.0001178,2]
[324813068,1714341049855,-500.0,0.0001178,2]
[324813069,1714341049866,-510.93,0.0001178,2]
[324813070,1714341049877,-500.0,0.0001178,2]
[324813071,1714341049888,-500.0,0.0001178,2]
[324813072,1714341049897,-500.0,0.0001178,2]
[324813073,1714341049906,-612.97,0.0001178,2]
[324813074,1714341049915,-500.0,0.0001178,2]
[324813075,1714341049924,-500.0,0.0001178,2]
[324813076,1714341049933,-502.88,0.0001178,2]
[324813077,1714341049942,-500.0,0.0001178,2]
[324813078,1714341049951,-500.0,0.0001178,2]
[324813079,1714341049961,-500.0,0.0001178,2]
[324813080,1714341049972,-539.7,0.0001178,2]
[324813081,1714341049982,-500.0,0.0001178,2]
[324813082,1714341049992,-353.02,0.0001178,2]
[324813083,1714341050002,-500.0,0.0001178,2]
[324813084,1714341050011,-500.0,0.0001178,2]
[324813085,1714341050020,-582.16,0.0001178,2]
[324813086,1714341050029,-500.0,0.0001178,2]
[324813087,1714341050038,-500.0,0.0001178,2]
[324813088,1714341050047,-500.0,0.0001178,2]
[324813089,1714341050056,-500.0,0.0001178,2]
[324813090,1714341050066,-500.0,0.0001178,2]
[324813091,1714341050075,-500.0,0.0001178,2]
[324813092,1714341050084,-1043.37,0.0001178,2]
[324813093,1714341050097,-500.0,0.0001178,2]
[324813094,1714341050107,-592.94,0.0001178,2]
[324813095,1714341050116,-610.76,0.0001178,2]
[324813096,1714341050125,-500.0,0.0001178,2]
[324813097,1714341050134,-500.0,0.0001178,2]
[324813098,1714341050145,-666.72,0.0001178,2]
[324813099,1714341050154,-500.0,0.0001178,2]
[324813100,1714341050162,-632.5073951,0.0001178,2]
[324813101,1714341050172,-500.0,0.0001178,2]
[324813102,1714341050181,-500.0,0.0001178,2]
[324813103,1714341050191,-685.26,0.0001178,2]
[324813104,1714341050201,-500.0,0.0001178,2]
[324813105,1714341050210,-500.0,0.0001178,2]
[324813106,1714341050219,-1020.32,0.0001178,2]
[324813107,1714341050228,-502.9,0.0001178,2]
[324813108,1714341050238,-500.0,0.0001178,2]
[324813109,1714341050247,-657.62,0.0001178,2]
[324813110,1714341050256,-500.0,0.0001178,2]
[324813111,1714341050266,-500.0,0.0001178,2]
[324813112,1714341050275,-500.0,0.0001178,2]
[324813113,1714341050284,-500.0,0.0001178,2]
[324813114,1714341050294,-492.28,0.0001178,2]
[324813115,1714341050303,-529.3,0.0001178,2]
[324813116,1714341050313,-638.69,0.0001178,2]
[324813117,1714341050323,-606.75,0.0001178,2]
[324813118,1714341050332,-500.0,0.0001178,2]
[324813119,1714341050341,-255.01,0.0001178,2]
[324813120,1714341050350,-863.33,0.0001178,2]
[324813121,1714341050359,-1529.21,0.0001178,2]
[324813122,1714341050368,-500.0,0.0001178,2]
[324813123,1714341050377,-518.89,0.0001178,2]
[324813124,1714341050386,-500.0,0.0001178,2]
[324813125,1714341050396,-329.25,0.0001178,2]
[324813126,1714341050405,-822.56,0.0001178,2]
[324813127,1714341050414,-4168.98,0.0001178,2]
[324813128,1714341050423,-500.0,0.0001178,2]
[324813129,1714341050432,-671.78,0.0001178,2]
[324813130,1714341050441,-500.0,0.0001178,2]
[324813131,1714341050450,-1616.93,0.0001178,2]
[324813132,1714341050460,-500.0,0.0001178,2]
[324813133,1714341050469,-500.0,0.0001178,2]
[324813134,1714341050479,-500.0,0.0001178,2]
[324813135,1714341050488,-500.0,0.0001178,2]
[324813136,1714341050497,-721.38,0.0001178,2]
[324813137,1714341050507,-1027.03,0.0001178,2]
[324813138,1714341050517,-500.0,0.0001178,2]
[324813139,1714341050526,-500.0,0.0001178,2]
[324813140,1714341050536,-7823.72,0.0001178,2]
[324813141,1714341050545,-547.0,0.0001178,2]
[324813142,1714341050554,-500.0,0.0001178,2]
[324813143,1714341050563,-500.0,0.0001178,2]
[324813144,1714341050573,-206.35,0.0001178,2]
[324813145,1714341050582,-500.0,0.0001178,2]
[324813146,1714341050591,-739.98,0.0001178,2]
[324813147,1714341050601,-500.0,0.0001178,2]
[324813148,1714341050610,-500.0,0.0001178,2]
[324813149,1714341050619,-500.0,0.0001178,2]
[324813150,1714341050629,-2815.22,0.0001178,2]
[324813151,1714341050639,-1064.93,0.0001178,2]
[324813152,1714341050648,-500.0,0.0001178,2]
[324813153,1714341050658,-500.0,0.0001178,2]
[324813154,1714341050667,-500.0,0.0001178,2]
[324813155,1714341050676,-500.0,0.0001178,2]
[324813156,1714341050685,-638.0,0.0001178,2]
[324813157,1714341050695,-500.0,0.0001178,2]
[324813158,1714341050704,-500.0,0.0001178,2]
[324813159,1714341050715,-500.0,0.0001178,2]
[324813160,1714341050725,-765.24,0.0001178,2]
[324813161,1714341050734,-500.0,0.0001178,2]
[324813162,1714341050743,-500.0,0.0001178,2]
[324813163,1714341050752,-500.0,0.0001178,2]
[324813164,1714341050762,-500.0,0.0001178,2]
[324813165,1714341050771,-904.55,0.0001178,2]
[324813166,1714341050780,-500.0,0.0001178,2]
[324813167,1714341050790,-500.0,0.0001178,2]
[324813168,1714341050799,-596.75,0.0001178,2]
[324813169,1714341050808,-1292.15,0.0001178,2]
[324813170,1714341050817,-500.0,0.0001178,2]
[324813171,1714341050827,-500.0,0.0001178,2]
[324813172,1714341050835,-500.0,0.0001178,2]
[324813173,1714341050845,-500.0,0.0001178,2]
[324813174,1714341050854,-619.33978455,0.0001178,2]
[324813175,1714341050863,-17248.02,0.0001178,2]
[324813176,1714341050872,-227.9822275,0.0001178,2]
[324813177,1714341050881,-500.0,0.0001178,2]
[324813178,1714341050890,-500.0,0.0001178,2]
[324813179,1714341050899,-1054.15,0.0001178,2]
[324813180,1714341050908,-255.36697471,0.0001178,2]
[324813181,1714341050917,-500.0,0.0001178,2]
[324813182,1714341050926,-500.0,0.0001178,2]
[324813183,1714341050935,-500.0,0.0001178,2]
[324813184,1714341050944,-637.61,0.0001178,2]
[324813185,1714341050953,-500.0,0.0001178,2]
[324813186,1714341050963,-500.0,0.0001178,2]
[324813187,1714341050972,-500.0,0.0001178,2]
[324813188,1714341050981,-500.0,0.0001178,2]
[324813189,1714341050990,-500.0,0.0001178,2]
[324813190,1714341051000,-261.66511873,0.00011954,2]
[324813191,1714341051011,-1000.0,0.00011995,2]
[324813192,1714341051020,-5000.0,0.00012,2]
[324813193,1714341051029,-500.0,0.00012052,2]
[324813194,1714341051038,-289.38,0.00012052,2]
[324813195,1714341051048,-500.0,0.00012052,2]
[324813196,1714341051057,-500.0,0.00012052,2]
[324813197,1714341051067,-500.0,0.00012052,2]
[324813198,1714341051078,-500.0,0.00012052,2]
[324813199,1714341051088,-500.0,0.00012052,2]
[324813200,1714341051100,-500.0,0.00012052,2]
[324813201,1714341051109,-500.0,0.00012052,2]
[324813202,1714341051119,-500.0,0.00012052,2]
[324813203,1714341051128,-500.0,0.00012052,2]
[324813204,1714341051138,-500.0,0.00012052,2]
[324813205,1714341051147,-500.0,0.00012052,2]
[324813206,1714341051156,-500.0,0.00012052,2]
[324813207,1714341051165,-500.0,0.00012052,2]
[324813208,1714341051176,-500.0,0.00012052,2]
[324813209,1714341051185,-500.0,0.00012052,2]
[324813210,1714341051194,-500.0,0.00012052,2]
[324813211,1714341051203,-500.0,0.00012052,2]
[324813212,1714341051213,-500.0,0.00012052,2]
[324813213,1714341051224,-500.0,0.00012052,2]
[324813214,1714341051233,-500.0,0.00012052,2]
[324813215,1714341051242,-500.0,0.00012052,2]
[324813216,1714341051251,-2064.16,0.00012053,2]
[324813217,1714341051261,-843.47,0.00012053,2]
[324813218,1714341051270,-500.0,0.00012053,2]
[324813219,1714341051279,-1166.48,0.00012053,2]
[324813220,1714341051289,-500.0,0.00012053,2]
[324813221,1714341051298,-592.13,0.00012053,2]
[324813222,1714341051307,-2311.26,0.00012053,2]
[324813223,1714341051317,-500.0,0.00012053,2]
[324813224,1714341051326,-2248.85,0.00012053,2]
[324813225,1714341051336,-500.0,0.00012053,2]
[324813226,1714341051345,-500.0,0.00012054,2]
[324813227,1714341051355,-500.0,0.00012054,2]
[324813228,1714341051364,-500.0,0.00012054,2]
[324813229,1714341051374,-500.0,0.00012054,2]
[324813230,1714341051384,-500.0,0.00012054,2]
[324813231,1714341051393,-500.0,0.00012054,2]
[324813232,1714341051403,-500.0,0.00012054,2]
[324813233,1714341051413,-500.0,0.00012054,2]
[324813234,1714341051422,-500.0,0.00012054,2]
[324813235,1714341051432,-743.26,0.00012054,2]
[324813236,1714341051441,-1035.98,0.00012054,2]
[324813237,1714341051451,-583.16,0.00012054,2]
[324813238,1714341051461,-534.39,0.00012054,2]
[324813239,1714341051471,-500.0,0.00012054,2]
[324813240,1714341051480,-658.41,0.00012054,2]
[324813241,1714341051490,-500.0,0.00012054,2]
[324813242,1714341051499,-1038.44,0.00012054,2]
[324813243,1714341051509,-751.72,0.00012054,2]
[324813244,1714341051518,-500.0,0.00012054,2]
[324813245,1714341051528,-510.93,0.00012054,2]
[324813246,1714341051541,-500.0,0.00012054,2]
[324813247,1714341051550,-500.0,0.00012054,2]
[324813248,1714341051560,-500.0,0.00012054,2]
[324813249,1714341051570,-612.97,0.00012054,2]
[324813250,1714341051580,-500.0,0.00012054,2]
[324813251,1714341051589,-500.0,0.00012054,2]
[324813252,1714341051599,-500.0,0.00012054,2]
[324813253,1714341051609,-500.0,0.00012054,2]
[324813254,1714341051619,-500.0,0.00012054,2]
[324813255,1714341051628,-539.7,0.00012054,2]
[324813256,1714341051638,-500.0,0.00012054,2]
[324813257,1714341051648,-500.0,0.00012054,2]
[324813258,1714341051658,-500.0,0.00012054,2]
[324813259,1714341051668,-500.0,0.00012054,2]
[324813260,1714341051677,-438.13,0.00012054,2]
[324813261,1714341051687,-500.0,0.00012054,2]
[324813262,1714341051697,-500.0,0.00012054,2]
[324813263,1714341051706,-500.0,0.00012054,2]
[324813264,1714341051717,-500.0,0.00012054,2]
[324813265,1714341051727,-1043.37,0.00012054,2]
[324813266,1714341051736,-500.0,0.00012054,2]
[324813267,1714341051747,-500.0,0.00012054,2]
[324813268,1714341051756,-500.0,0.00012054,2]
[324813269,1714341051766,-666.72,0.00012054,2]
[324813270,1714341051776,-500.0,0.00012054,2]
[324813271,1714341051786,-500.0,0.00012054,2]
[324813272,1714341051796,-500.0,0.00012054,2]
[324813273,1714341051806,-685.26,0.00012054,2]
[324813274,1714341051816,-500.0,0.00012054,2]
[324813275,1714341051826,-500.0,0.00012054,2]
[324813276,1714341051836,-1020.32,0.00012054,2]
[324813277,1714341051846,-502.9,0.00012054,2]
[324813278,1714341051855,-536.98,0.00012054,2]
[324813279,1714341051865,-657.62,0.00012054,2]
[324813280,1714341051875,-500.0,0.00012054,2]
[324813281,1714341051885,-500.0,0.00012054,2]
[324813282,1714341051895,-500.0,0.00012054,2]
[324813283,1714341051904,-500.0,0.00012054,2]
[324813284,1714341051914,-529.3,0.00012054,2]
[324813285,1714341051924,-606.75,0.00012054,2]
[324813286,1714341051933,-500.0,0.00012054,2]
[324813287,1714341051943,-863.33,0.00012054,2]
[324813288,1714341051953,-1529.21,0.00012054,2]
[324813289,1714341051964,-500.0,0.00012054,2]
[324813290,1714341051974,-518.89,0.00012054,2]
[324813291,1714341051984,-500.0,0.00012054,2]
[324813292,1714341051994,-822.56,0.00012054,2]
[324813293,1714341052003,-4168.98,0.00012054,2]
[324813294,1714341052014,-500.0,0.00012054,2]
[324813295,1714341052024,-671.78,0.00012054,2]
[324813296,1714341052034,-533.39,0.00012054,2]
[324813297,1714341052043,-1616.93,0.00012054,2]
[324813298,1714341052053,-500.0,0.00012054,2]
[324813299,1714341052063,-500.0,0.00012054,2]
[324813300,1714341052072,-500.0,0.00012054,2]
[324813301,1714341052082,-500.0,0.00012054,2]
[324813302,1714341052094,-721.38,0.00012054,2]
[324813303,1714341052107,-1027.03,0.00012054,2]
[324813304,1714341052116,-500.0,0.00012054,2]
[324813305,1714341052125,-500.0,0.00012054,2]
[324813306,1714341052135,-7823.72,0.00012054,2]
[324813307,1714341052146,-547.0,0.00012054,2]
[324813308,1714341052156,-500.0,0.00012054,2]
[324813309,1714341052166,-265.09,0.00012054,2]
[324813310,1714341052176,-500.0,0.00012054,2]
[324813311,1714341052185,-500.0,0.00012054,2]
[324813312,1714341052195,-500.0,0.00012054,2]
[324813313,1714341052204,-500.0,0.00012054,2]
[324813314,1714341052215,-2815.22,0.00012054,2]
[324813315,1714341052224,-1064.93,0.00012054,2]
[324813316,1714341052234,-500.0,0.00012054,2]
[324813317,1714341052244,-500.0,0.00012054,2]
[324813318,1714341052254,-500.0,0.00012054,2]
[324813319,1714341052264,-500.0,0.00012054,2]
[324813320,1714341052274,-332.66,0.00012054,2]
[324813321,1714341052284,-500.0,0.00012054,2]
[324813322,1714341052293,-500.0,0.00012054,2]
[324813323,1714341052304,-765.24,0.00012054,2]
[324813324,1714341052314,-500.0,0.00012054,2]
[324813325,1714341052324,-500.0,0.00012054,2]
[324813326,1714341052335,-500.0,0.00012054,2]
[324813327,1714341052344,-904.55,0.00012054,2]
[324813328,1714341052354,-500.0,0.00012054,2]
[324813329,1714341052365,-500.0,0.00012054,2]
[324813330,1714341052374,-596.75,0.00012054,2]
[324813331,1714341052385,-1292.15,0.00012054,2]
[324813332,1714341052396,-500.0,0.00012054,2]
[324813333,1714341052406,-500.0,0.00012054,2]
[324813334,1714341052415,-500.0,0.00012054,2]
[324813335,1714341052425,-17248.02,0.00012054,2]
[324813336,1714341052435,-500.0,0.00012054,2]
[324813337,1714341052445,-394.56,0.00012054,2]
[324813338,1714341052454,-1054.15,0.00012054,2]
[324813339,1714341052465,-500.0,0.00012054,2]
[324813340,1714341052475,-376.77,0.00012054,2]
[324813341,1714341052485,-500.0,0.00012054,2]
[324813342,1714341052495,-500.0,0.00012054,2]
[324813343,1714341052504,-435.34,0.00012054,2]
[324813344,1714341052514,-308.51,0.00012054,2]
[324813345,1714341052524,-500.0,0.00012054,2]
[324813346,1714341052534,-500.0,0.00012054,2]
[324813347,1714341052543,-500.0,0.00012326,2]
[324813348,1714341052553,-500.0,0.00012326,2]
[324813349,1714341052562,-500.0,0.00012326,2]
[324813350,1714341052572,-500.0,0.00012326,2]
[324813351,1714341052582,-500.0,0.00012326,2]
[324813352,1714341052591,-500.0,0.00012326,2]
[324813353,1714341052601,-500.0,0.00012326,2]
[324813354,1714341052611,-500.0,0.00012326,2]
[324813355,1714341052620,-500.0,0.00012326,2]
[324813356,1714341052630,-500.0,0.00012326,2]
[324813357,1714341052640,-399.37,0.00012326,2]
[324813358,1714341052650,-500.0,0.00012326,2]
[324813359,1714341052659,-500.0,0.00012326,2]
[324813360,1714341052668,-500.0,0.00012326,2]
[324813361,1714341052678,-500.0,0.00012326,2]
[324813362,1714341052688,-500.0,0.00012326,2]
[324813363,1714341052697,-500.0,0.00012326,2]
[324813364,1714341052706,-500.0,0.00012326,2]
[324813365,1714341052717,-500.0,0.00012326,2]
[324813366,1714341052726,-500.0,0.00012326,2]
[324813367,1714341052736,-500.0,0.00012326,2]
[324813368,1714341052746,-400.23,0.00012326,2]
[324813369,1714341052755,-2064.16,0.00012327,2]
[324813370,1714341052765,-843.47,0.00012327,2]
[324813371,1714341052775,-500.0,0.00012327,2]
[324813372,1714341052784,-1166.48,0.00012327,2]
[324813373,1714341052794,-447.39,0.00012327,2]
[324813374,1714341052804,-592.13,0.00012327,2]
[324813375,1714341052814,-2311.26,0.00012327,2]
[324813376,1714341052825,-500.0,0.00012327,2]
[324813377,1714341052835,-2248.85,0.00012327,2]
[324813378,1714341052845,-500.0,0.00012328,2]
[324813379,1714341052854,-500.0,0.00012328,2]
[324813380,1714341052864,-500.0,0.00012328,2]
[324813381,1714341052874,-500.0,0.00012328,2]
[324813382,1714341052884,-500.0,0.00012328,2]
[324813383,1714341052894,-500.0,0.00012328,2]
[324813384,1714341052905,-500.0,0.00012328,2]
[324813385,1714341052916,-500.0,0.00012328,2]
[324813386,1714341052926,-500.0,0.00012328,2]
[324813387,1714341052936,-743.26,0.00012328,2]
[324813388,1714341052946,-1035.98,0.00012328,2]
[324813389,1714341052955,-583.16,0.00012328,2]
[324813390,1714341052965,-542.45,0.00012328,2]
[324813391,1714341052975,-658.41,0.00012328,2]
[324813392,1714341052985,-500.0,0.00012328,2]
[324813393,1714341052995,-1038.44,0.00012328,2]
[324813394,1714341053004,-751.72,0.00012328,2]
[324813395,1714341053014,-500.0,0.00012328,2]
[324813396,1714341053024,-510.93,0.00012328,2]
[324813397,1714341053033,-252.54777217,0.00012328,2]
[324813398,1714341053043,-500.0,0.00012328,2]
[324813399,1714341053053,-500.0,0.00012328,2]
[324813400,1714341053062,-612.97,0.00012328,2]
[324813401,1714341053072,-500.0,0.00012328,2]
[324813402,1714341053081,-500.0,0.00012328,2]
[324813403,1714341053091,-500.0,0.00012328,2]
[324813404,1714341053106,-310.6092922,0.00012328,2]
[324813405,1714341053115,-237.97351983,0.00012328,2]
[324813406,1714341053125,-539.7,0.00012328,2]
[324813407,1714341053135,-500.0,0.00012328,2]
[324813408,1714341053146,-500.0,0.00012328,2]
[324813409,1714341053155,-631.26,0.00012328,2]
[324813410,1714341053165,-500.0,0.00012328,2]
[324813411,1714341053175,-500.0,0.00012328,2]
[324813412,1714341053186,-250.39,0.00012328,2]
[324813413,1714341053196,-500.0,0.00012328,2]
[324813414,1714341053205,-500.0,0.00012328,2]
[324813415,1714341053215,-1043.37,0.00012328,2]
[324813416,1714341053225,-500.0,0.00012328,2]
[324813417,1714341053235,-500.0,0.00012328,2]
[324813418,1714341053244,-500.0,0.00012328,2]
[324813419,1714341053254,-666.72,0.00012328,2]
[324813420,1714341053263,-500.0,0.00012328,2]
[324813421,1714341053273,-369.47,0.00012328,2]
[324813422,1714341053282,-500.0,0.00012328,2]
[324813423,1714341053292,-685.26,0.00012328,2]
[324813424,1714341053302,-500.0,0.00012328,2]
[324813425,1714341053313,-1020.32,0.00012328,2]
[324813426,1714341053323,-500.0,0.00012328,2]
[324813427,1714341053333,-502.9,0.00012328,2]
[324813428,1714341053342,-657.62,0.00012328,2]
[324813429,1714341053352,-544.86,0.00012328,2]
[324813430,1714341053362,-500.0,0.00012328,2]
[324813431,1714341053372,-500.0,0.00012328,2]
[324813432,1714341053382,-500.0,0.00012328,2]
[324813433,1714341053392,-529.3,0.00012328,2]
[324813434,1714341053402,-606.75,0.00012328,2]
[324813435,1714341053412,-500.0,0.00012328,2]
[324813436,1714341053422,-863.33,0.00012328,2]
[324813437,1714341053432,-1529.21,0.00012328,2]
[324813438,1714341053442,-500.0,0.00012328,2]
[324813439,1714341053452,-518.89,0.00012328,2]
[324813440,1714341053468,-296.37,0.00012328,2]
[324813441,1714341053694,-822.56,0.00012328,2]
[324813442,1714341053704,-4168.98,0.00012328,2]
[324813443,1714341053713,-500.0,0.00012328,2]
[324813444,1714341053723,-671.78,0.00012328,2]
[324813445,1714341053732,-1616.93,0.00012328,2]
[324813446,1714341053741,-500.0,0.00012328,2]
[324813447,1714341053750,-500.0,0.00012328,2]
[324813448,1714341053759,-500.0,0.00012328,2]
[324813449,1714341053768,-500.0,0.00012328,2]
[324813450,1714341053778,-721.38,0.00012328,2]
[324813451,1714341053787,-1027.03,0.00012328,2]
[324813452,1714341053796,-500.0,0.00012328,2]
[324813453,1714341053806,-500.0,0.00012328,2]
[324813454,1714341053815,-7823.72,0.00012328,2]
[324813455,1714341053824,-547.0,0.00012328,2]
[324813456,1714341053833,-500.0,0.00012328,2]
[324813457,1714341053842,-739.98,0.00012328,2]
[324813458,1714341053852,-500.0,0.00012328,2]
[324813459,1714341053861,-500.0,0.00012328,2]
[324813460,1714341053871,-500.0,0.00012328,2]
[324813461,1714341053880,-500.0,0.00012328,2]
[324813462,1714341053889,-2815.22,0.00012328,2]
[324813463,1714341053898,-1064.93,0.00012328,2]
[324813464,1714341053907,-423.81,0.00012328,2]
[324813465,1714341053916,-617.11,0.00012328,2]
[324813466,1714341053925,-500.0,0.00012328,2]
[324813467,1714341053934,-500.0,0.00012328,2]
[324813468,1714341053943,-500.0,0.00012328,2]
[324813469,1714341053952,-500.0,0.00012328,2]
[324813470,1714341053961,-765.24,0.00012328,2]
[324813471,1714341053971,-500.0,0.00012328,2]
[324813472,1714341053980,-500.0,0.00012328,2]
[324813473,1714341053989,-500.0,0.00012328,2]